fUSD/lending_fUSD_20250514
["ID","MTS","AMOUNT","RATE_DAILY","PERIOD"]
[361025344,1747209056013,-434.56,0.00011232,2]
[361025345,1747209056023,-1158.53,0.00011232,2]
[361025346,1747209056033,-484.69,0.00011232,2]
[361025347,1747209056043,-1095.0,0.00011232,2]
[361025348,1747209056052,-1932.75,0.00011232,2]
[361025349,1747209056062,-435.72,0.00011232,2]
[361025350,1747209056071,-400.0,0.00011232,2]
[361025351,1747209056081,-400.0,0.00011232,2]
[361025352,1747209056091,-400.0,0.00011232,2]
[361025353,1747209056101,-1315.66,0.00011232,2]
[361025354,1747209056110,-258.74685399,0.00011232,2]
[361025355,1747209056264,-457.59,0.00011232,2]
[361025356,1747209056274,-400.0,0.00011232,2]
[361025357,1747209056281,-400.0,0.00011232,2]
[361025358,1747209056290,-396.71233211,0.00011232,2]
[361025359,1747209056300,-496.1,0.00011232,2]
[361025360,1747209056309,-814.19,0.00011232,2]
[361025361,1747209056318,-400.0,0.00011232,2]
[361025362,1747209056327,-5005.62,0.00011232,2]
[361025363,1747209056338,-459.36,0.00011232,2]
[361025364,1747209056347,-615.67,0.00011232,2]
[361025365,1747209056356,-4200.08,0.00011232,2]
[361025366,1747209056365,-400.0,0.00011232,2]
[361025367,1747209056375,-400.0,0.00011232,2]
[361025368,1747209056385,-402.79,0.00011232,2]
[361025369,1747209056394,-400.0,0.00011232,2]
[361025370,1747209056404,-400.0,0.00011232,2]
[361025371,1747209056415,-1129.39,0.00011232,2]
[361025372,1747209056424,-400.0,0.00011232,2]
[361025373,1747209056433,-695.95,0.00011232,2]
[361025374,1747209056442,-558.35,0.00011232,2]
[361025375,1747209056451,-900.7,0.00011232,2]
[361025376,1747209056461,-400.0,0.00011232,2]
[361025377,1747209056471,-2565.38,0.00011232,2]
[361025378,1747209056481,-1206.83,0.00011232,2]
[361025379,1747209056491,-400.0,0.00011232,2]
[361025380,1747209056500,-704.13,0.00011232,2]
[361025381,1747209056510,-400.0,0.00011232,2]
[361025382,1747209056520,-905.95,0.00011232,2]
[361025383,1747209056530,-400.0,0.00011232,2]
[361025384,1747209056540,-461.69,0.00011232,2]
[361025385,1747209056550,-400.0,0.00011232,2]
[361025386,1747209056560,-1026.15,0.00011232,2]
[361025387,1747209056569,-926.7,0.00011232,2]
[361025388,1747209056579,-720.88,0.00011232,2]
[361025389,1747209056588,-406.21275853,0.00011232,2]
[361025390,1747209056598,-828.79,0.00011232,2]
[361025391,1747209056608,-696.91,0.00011232,2]
[361025392,1747209056619,-2110.67,0.00011232,2]
[361025393,1747209056629,-400.0,0.00011232,2]
[361025394,1747209056638,-400.0,0.00011232,2]
[361025395,1747209056648,-540.58,0.00011232,2]
[361025396,1747209056659,-3080.676498,0.00011232,2]
[361025397,1747209056669,-400.0,0.00011232,2]
[361025398,1747209056679,-1784.16,0.00011232,2]
[361025399,1747209056690,-400.0,0.00011232,2]
[361025400,1747209056700,-400.0,0.00011232,2]
[361025401,1747209056710,-400.0,0.00011232,2]
[361025402,1747209056720,-1232.7,0.00011232,2]
[361025403,1747209056729,-1246.63,0.00011232,2]
[361025404,1747209056739,-400.0,0.00011232,2]
[361025405,1747209056749,-400.0,0.00011232,2]
[361025406,1747209056759,-1031.46,0.00011232,2]
[361025407,1747209056769,-400.0,0.00011232,2]
[361025408,1747209056779,-400.0,0.00011232,2]
[361025409,1747209056788,-614.08,0.00011232,2]
[361025410,1747209056799,-415.13,0.00011232,2]
[361025411,1747209056808,-915.16,0.00011232,2]
[361025412,1747209056818,-400.0,0.00011232,2]
[361025413,1747209056827,-400.0,0.00011232,2]
[361025414,1747209056836,-8117.6,0.00011232,2]
[361025415,1747209056846,-400.0,0.00011232,2]
[361025416,1747209056855,-400.0,0.00011232,2]
[361025417,1747209056865,-400.0,0.00011232,2]
[361025418,1747209056874,-1273.28,0.00011232,2]
[361025419,1747209056884,-400.0,0.00011232,2]
[361025420,1747209056894,-400.0,0.00011232,2]
[361025421,1747209056903,-400.0,0.00011232,2]
[361025422,1747209056912,-400.0,0.00011232,2]
[361025423,1747209056922,-400.0,0.00011232,2]
[361025424,1747209056931,-504.75659566,0.00011232,2]
[361025425,1747209056941,-2424.58,0.00011232,2]
[361025426,1747209056951,-447.54,0.00011232,2]
[361025427,1747209056960,-424.75721175,0.00011232,2]
[361025428,1747209056971,-400.0,0.00011232,2]
[361025429,1747209056981,-400.0,0.00011232,2]
[361025430,1747209056991,-400.0,0.00011232,2]
[361025431,1747209057000,-400.0,0.00011232,2]
[361025432,1747209057010,-8091.9,0.00011232,2]
[361025433,1747209057020,-723.09,0.00011232,2]
[361025434,1747209057030,-422.1,0.00011232,2]
[361025435,1747209057039,-1958.39,0.00011232,2]
[361025436,1747209057048,-476.55,0.00011232,2]
[361025437,1747209057058,-2526.26,0.00011232,2]
[361025438,1747209057067,-803.6,0.00011232,2]
[361025439,1747209057077,-2914.11,0.00011232,2]
[361025440,1747209057086,-599.26,0.00011232,2]
[361025441,1747209057096,-905.05,0.00011232,2]
[361025442,1747209057105,-1722.0,0.00011232,2]
[361025443,1747209057115,-400.0,0.00011232,2]
[361025444,1747209057124,-1000.0,0.00011232,2]
[361025445,1747209057133,-805.31,0.00011232,2]
[361025446,1747209057143,-400.0,0.00011232,2]
[361025447,1747209057152,-400.0,0.00011232,2]
[361025448,1747209057162,-400.0,0.00011232,2]
[361025449,1747209057171,-981.33,0.00011232,2]
[361025450,1747209057181,-400.0,0.00011232,2]
[361025451,1747209057190,-4000.0,0.00011233,2]
[361025452,1747209057201,-1680.0,0.00011257,2]
[361025453,1747209057211,-500.0,0.00011273,2]
[361025454,1747209057220,-500.0,0.00011273,2]
[361025455,1747209057230,-400.0,0.00011273,2]
[361025456,1747209057240,-4023.91337391,0.00011284,2]
[361025457,1747209057250,-8520.23959108,0.00011284,2]
[361025458,1747209057260,-169.86,0.00011314,2]
[361025459,1747209057270,-200.0,0.00011333,2]
[361025460,1747209057280,-864.05076374,0.00011409,2]
[361025461,1747209057289,-767.0,0.0001142,2]
[361025462,1747209057300,-200.0,0.00011447,2]
[361025463,1747209057309,-4023.91337391,0.00011497,2]
[361025464,1747209057319,-8520.23959108,0.00011497,2]
[361025465,1747209057328,-500.0,0.00011504,2]
[361025466,1747209057340,-400.0,0.00011505,2]
[361025467,1747209057350,-400.0,0.00011505,2]
[361025468,1747209057362,-400.0,0.00011505,2]
[361025469,1747209057373,-228.66257092,0.00011505,2]
[361025470,1747209057386,-400.0,0.00011505,2]
[361025471,1747209057396,-528.13,0.00011505,2]
[361025472,1747209057406,-816.27,0.00011505,2]
[361025473,1747209057418,-400.0,0.00011505,2]
[361025474,1747209057427,-400.0,0.00011505,2]
[361025475,1747209057438,-400.0,0.00011505,2]
[361025476,1747209057447,-400.0,0.00011505,2]
[361025477,1747209057457,-679.38,0.00011505,2]
[361025478,1747209057466,-400.0,0.00011505,2]
[361025479,1747209057475,-400.0,0.00011505,2]
[361025480,1747209057485,-400.0,0.00011505,2]
[361025481,1747209057494,-400.0,0.00011505,2]
[361025482,1747209057503,-400.0,0.00011505,2]
[361025483,1747209057513,-500.0,0.00011505,2]
[361025484,1747209057523,-703.18,0.00011506,2]
[361025485,1747209057532,-3177.997265,0.00011506,2]
[361025486,1747209057542,-400.0,0.00011506,2]
[361025487,1747209057551,-400.0,0.00011506,2]
[361025488,1747209057561,-400.0,0.00011506,2]
[361025489,1747209057570,-400.0,0.00011506,2]
[361025490,1747209057580,-400.0,0.00011506,2]
[361025491,1747209057590,-400.0,0.00011506,2]
[361025492,1747209057599,-158.34350622,0.00011506,2]
[361025493,1747209057609,-408.26022069,0.00011506,2]
[361025494,1747209057618,-596.11,0.00011506,2]
[361025495,1747209057628,-400.0,0.00011506,2]
[361025496,1747209057638,-400.0,0.00011506,2]
[361025497,1747209057647,-400.0,0.00011506,2]
[361025498,1747209057656,-400.0,0.00011506,2]
[361025499,1747209057665,-400.0,0.00011506,2]
[361025500,1747209057675,-400.0,0.00011506,2]
[361025501,1747209057685,-400.0,0.00011506,2]
[361025502,1747209057695,-400.0,0.00011506,2]
[361025503,1747209057705,-400.0,0.00011506,2]
[361025504,1747209057715,-400.0,0.00011506,2]
[361025505,1747209057724,-400.0,0.00011506,2]
[361025506,1747209057733,-400.0,0.00011506,2]
[361025507,1747209057743,-737.65,0.00011506,2]
[361025508,1747209057752,-711.57,0.00011506,2]
[361025509,1747209057762,-672.9,0.00011506,2]
[361025510,1747209057771,-400.0,0.00011506,2]
[361025511,1747209057780,-400.0,0.00011506,2]
[361025512,1747209057790,-460.32,0.00011506,2]
[361025513,1747209057799,-400.0,0.00011506,2]
[361025514,1747209057809,-400.0,0.00011506,2]
[361025515,1747209057819,-400.0,0.00011506,2]
[361025516,1747209057829,-400.0,0.00011506,2]
[361025517,1747209057839,-939.06,0.00011506,2]
[361025518,1747209057849,-436.72,0.00011506,2]
[361025519,1747209057859,-400.0,0.00011506,2]
[361025520,1747209057869,-400.0,0.00011506,2]
[361025521,1747209057879,-400.0,0.00011506,2]
[361025522,1747209057889,-1236.03,0.00011506,2]
[361025523,1747209057899,-882.64,0.00011506,2]
[361025524,1747209057910,-400.0,0.00011506,2]
[361025525,1747209057919,-400.0,0.00011506,2]
[361025526,1747209057929,-400.0,0.00011506,2]
[361025527,1747209057939,-400.0,0.00011506,2]
[361025528,1747209057949,-483.18,0.00011506,2]
[361025529,1747209057959,-400.0,0.00011506,2]
[361025530,1747209057969,-400.0,0.00011506,2]
[361025531,1747209057978,-400.0,0.00011506,2]
[361025532,1747209057988,-381.06027881,0.00011506,2]
[361025533,1747209057997,-400.0,0.00011506,2]
[361025534,1747209058007,-400.0,0.00011506,2]
[361025535,1747209058017,-400.0,0.00011506,2]
[361025536,1747209058027,-400.0,0.00011506,2]
[361025537,1747209058036,-400.0,0.00011506,2]
[361025538,1747209058046,-400.0,0.00011506,2]
[361025539,1747209058056,-479.52,0.00011506,2]
[361025540,1747209058066,-400.0,0.00011506,2]
[361025541,1747209058076,-634.51,0.00011506,2]
[361025542,1747209058085,-400.0,0.00011506,2]
[361025543,1747209058095,-435.37,0.00011506,2]
[361025544,1747209058104,-596.16,0.00011506,2]
[361025545,1747209058114,-400.0,0.00011506,2]
[361025546,1747209058123,-400.0,0.00011506,2]
[361025547,1747209058133,-494.69,0.00011506,2]
[361025548,1747209058143,-400.0,0.00011506,2]
[361025549,1747209058153,-400.0,0.00011506,2]
[361025550,1747209058162,-400.0,0.00011506,2]
[361025551,1747209058171,-400.0,0.00011506,2]
[361025552,1747209058181,-400.0,0.00011506,2]
[361025553,1747209058192,-400.0,0.00011506,2]
[361025554,1747209058205,-400.0,0.00011506,2]
[361025555,1747209058215,-400.0,0.00011506,2]
[361025556,1747209058225,-599.12,0.00011506,2]
[361025557,1747209058234,-400.0,0.00011506,2]
[361025558,1747209058244,-1062.41,0.00011506,2]
[361025559,1747209058254,-400.0,0.00011506,2]
[361025560,1747209058264,-400.0,0.00011506,2]
[361025561,1747209058273,-400.0,0.00011506,2]
[361025562,1747209058283,-1179.96,0.00011506,2]
[361025563,1747209058292,-450.9,0.00011506,2]
[361025564,1747209058302,-884.53,0.00011506,2]
[361025565,1747209058312,-1027.84,0.00011506,2]
[361025566,1747209058321,-400.0,0.00011506,2]
[361025567,1747209058331,-400.0,0.00011506,2]
[361025568,1747209058344,-400.0,0.00011506,2]
[361025569,1747209058353,-1395.43,0.00011506,2]
[361025570,1747209058363,-543.81,0.00011506,2]
[361025571,1747209058372,-688.09,0.00011506,2]
[361025572,1747209058383,-540.49,0.00011506,2]
[361025573,1747209058393,-545.09,0.00011506,2]
[361025574,1747209058402,-1082.93,0.00011506,2]
[361025575,1747209058412,-400.0,0.00011506,2]
[361025576,1747209058422,-476.99,0.00011506,2]
[361025577,1747209058433,-502.4,0.00011506,2]
[361025578,1747209058442,-400.0,0.00011506,2]
[361025579,1747209058454,-518.03,0.00011506,2]
[361025580,1747209058464,-400.0,0.00011506,2]
[361025581,1747209058474,-400.0,0.00011506,2]
[361025582,1747209058483,-400.0,0.00011506,2]
[361025583,1747209058498,-2119.41,0.00011506,2]
[361025584,1747209058508,-528.83,0.00011506,2]
[361025585,1747209058518,-1034.94,0.00011506,2]
[361025586,1747209058527,-521.6,0.00011506,2]
[361025587,1747209058537,-833.6,0.00011506,2]
[361025588,1747209058547,-1089.67,0.00011506,2]
[361025589,1747209058557,-855.81,0.00011506,2]
[361025590,1747209058566,-649.48,0.00011506,2]
[361025591,1747209058576,-662.78,0.00011506,2]
[361025592,1747209058586,-1112.52,0.00011506,2]
[361025593,1747209058595,-450.15,0.00011506,2]
[361025594,1747209058605,-400.0,0.00011506,2]
[361025595,1747209058615,-665.82,0.00011506,2]
[361025596,1747209058624,-670.7,0.00011506,2]
[361025597,1747209058634,-400.0,0.00011506,2]
[361025598,1747209058645,-400.0,0.00011506,2]
[361025599,1747209058654,-400.0,0.00011506,2]
[361025600,1747209058664,-400.0,0.00011506,2]
[361025601,1747209058673,-936.51,0.00011506,2]
[361025602,1747209058683,-400.0,0.00011506,2]
[361025603,1747209058693,-400.0,0.00011506,2]
[361025604,1747209058704,-1073.27,0.00011506,2]
[361025605,1747209058714,-400.0,0.00011506,2]
[361025606,1747209058724,-400.0,0.00011506,2]
[361025607,1747209058734,-1216.82,0.00011506,2]
[361025608,1747209058744,-400.0,0.00011506,2]
[361025609,1747209058754,-400.0,0.00011506,2]
[361025610,1747209058763,-400.0,0.00011506,2]
[361025611,1747209058773,-400.0,0.00011506,2]
[361025612,1747209058783,-1630.94,0.00011506,2]
[361025613,1747209058792,-909.1,0.00011506,2]
[361025614,1747209058802,-400.0,0.00011506,2]
[361025615,1747209058811,-565.83,0.00011506,2]
[361025616,1747209058820,-400.0,0.00011506,2]
[361025617,1747209058830,-1329.57,0.00011506,2]
[361025618,1747209058839,-400.0,0.00011506,2]
[361025619,1747209058849,-1847.25,0.00011506,2]
[361025620,1747209058858,-400.0,0.00011506,2]
[361025621,1747209058868,-400.0,0.00011506,2]
[361025622,1747209058878,-400.0,0.00011506,2]
[361025623,1747209058888,-422.51,0.00011506,2]
[361025624,1747209058898,-400.0,0.00011506,2]
[361025625,1747209058907,-400.0,0.00011506,2]
[361025626,1747209058917,-400.0,0.00011506,2]
[361025627,1747209058927,-876.56,0.00011506,2]
[361025628,1747209058936,-2140.12,0.00011506,2]
[361025629,1747209058946,-571.96,0.00011506,2]
[361025630,1747209058956,-410.56,0.00011506,2]
[361025631,1747209058965,-892.67,0.00011506,2]
[361025632,1747209058975,-400.0,0.00011506,2]
[361025633,1747209058985,-400.0,0.00011506,2]
[361025634,1747209058995,-400.0,0.00011506,2]
[361025635,1747209059004,-400.0,0.00011506,2]
[361025636,1747209059015,-400.0,0.00011506,2]
[361025637,1747209059024,-400.0,0.00011506,2]
[361025638,1747209059034,-507.63,0.00011506,2]
[361025639,1747209059044,-1074.21,0.00011506,2]
[361025640,1747209059053,-400.0,0.00011506,2]
[361025641,1747209059063,-400.0,0.00011506,2]
[361025642,1747209059072,-2412.67,0.00011506,2]
[361025643,1747209059082,-400.0,0.00011506,2]
[361025644,1747209059092,-400.0,0.00011506,2]
[361025645,1747209059102,-400.0,0.00011506,2]
[361025646,1747209059113,-1071.37,0.00011506,2]
[361025647,1747209059123,-400.0,0.00011506,2]
[361025648,1747209059134,-400.0,0.00011506,2]
[361025649,1747209059144,-400.0,0.00011506,2]
[361025650,1747209059156,-585.74,0.00011506,2]
[361025651,1747209059167,-400.0,0.00011506,2]
[361025652,1747209059177,-400.0,0.00011506,2]
[361025653,1747209059187,-315.03655229,0.00011506,2]
[361025654,1747209059198,-400.0,0.00011506,2]
[361025655,1747209059207,-1055.84,0.00011506,2]
[361025656,1747209059217,-400.0,0.00011506,2]
[361025657,1747209059226,-1569.68,0.00011506,2]
[361025658,1747209059236,-3342.19,0.00011506,2]
[361025659,1747209059246,-1011.98,0.00011506,2]
[361025660,1747209059255,-400.0,0.00011506,2]
[361025661,1747209059265,-437.7,0.00011506,2]
[361025662,1747209059274,-841.38,0.00011506,2]
[361025663,1747209059284,-536.04135594,0.00011506,2]
[361025664,1747209059294,-2138.29,0.00011506,2]
[361025665,1747209059304,-799.14,0.00011506,2]
[361025666,1747209059314,-931.09,0.00011506,2]
[361025667,1747209059323,-400.0,0.00011506,2]
[361025668,1747209059333,-400.0,0.00011506,2]
[361025669,1747209059345,-400.03,0.00011506,2]
[361025670,1747209059355,-358.0,0.00011506,2]
[361025671,1747209059364,-400.0,0.00011506,2]
[361025672,1747209059374,-561.99,0.00011506,2]
[361025673,1747209059385,-447.86,0.00011506,2]
[361025674,1747209059395,-1506.45,0.00011506,2]
[361025675,1747209059405,-400.0,0.00011506,2]
[361025676,1747209059415,-1248.25,0.00011506,2]
[361025677,1747209059424,-466.29,0.00011506,2]
[361025678,1747209059435,-400.67602659,0.00011506,2]
[361025679,1747209059445,-500.31,0.00011506,2]
[361025680,1747209059455,-387.46708691,0.00011506,2]
[361025681,1747209059465,-400.0,0.00011506,2]
[361025682,1747209059475,-559.56,0.00011506,2]
[361025683,1747209059484,-400.0,0.00011506,2]
[361025684,1747209059494,-400.0,0.00011506,2]
[361025685,1747209059503,-499.83,0.00011506,2]
[361025686,1747209059513,-400.0,0.00011506,2]
[361025687,1747209059522,-400.0,0.00011506,2]
[361025688,1747209059532,-400.0,0.00011506,2]
[361025689,1747209059542,-648.49,0.00011506,2]
[361025690,1747209059552,-400.0,0.00011506,2]
[361025691,1747209059562,-400.0,0.00011506,2]
[361025692,1747209059572,-400.0,0.00011506,2]
[361025693,1747209059581,-400.0,0.00011506,2]
[361025694,1747209059591,-397.51213601,0.00011506,2]
[361025695,1747209059601,-735.21,0.00011506,2]
[361025696,1747209059611,-400.0,0.00011506,2]
[361025697,1747209059621,-2396.6,0.00011506,2]
[361025698,1747209059630,-400.0,0.00011506,2]
[361025699,1747209059640,-400.0,0.00011506,2]
[361025700,1747209059649,-400.0,0.00011506,2]
[361025701,1747209059659,-488.25,0.00011506,2]
[361025702,1747209059669,-686.74,0.00011506,2]
[361025703,1747209059679,-400.0,0.00011506,2]
[361025704,1747209059689,-663.93,0.00011506,2]
[361025705,1747209059699,-400.0,0.00011506,2]
[361025706,1747209059710,-400.0,0.00011506,2]
[361025707,1747209059720,-400.0,0.00011506,2]
[361025708,1747209059730,-400.0,0.00011506,2]
[361025709,1747209059739,-496.4997849,0.00011506,2]
[361025710,1747209059749,-765.05,0.00011506,2]
[361025711,1747209059758,-837.82,0.00011506,2]
[361025712,1747209059768,-400.0,0.00011506,2]
[361025713,1747209059777,-846.38,0.00011506,2]
[361025714,1747209059787,-400.0,0.00011506,2]
[361025715,1747209059797,-400.0,0.00011506,2]
[361025716,1747209059807,-713.16,0.00011506,2]
[361025717,1747209059816,-544.35,0.00011506,2]
[361025718,1747209059826,-1073.49,0.00011506,2]
[361025719,1747209059835,-400.0,0.00011506,2]
[361025720,1747209059844,-452.73,0.00011506,2]
[361025721,1747209059854,-400.0,0.00011506,2]
[361025722,1747209059864,-400.0,0.00011506,2]
[361025723,1747209059873,-400.0,0.00011506,2]
[361025724,1747209059883,-610.73,0.00011506,2]
[361025725,1747209059893,-400.0,0.00011506,2]
[361025726,1747209059903,-400.0,0.00011506,2]
[361025727,1747209059912,-1807.34,0.00011506,2]
[361025728,1747209059922,-400.0,0.00011506,2]
[361025729,1747209059932,-1075.48,0.00011506,2]
[361025730,1747209060133,-442.29,0.00011506,2]
[361025731,1747209060143,-400.0,0.00011506,2]
[361025732,1747209060153,-504.1,0.00011506,2]
[361025733,1747209060163,-400.0,0.00011506,2]
[361025734,1747209060172,-561.75,0.00011506,2]
[361025735,1747209060181,-546.56,0.00011506,2]
[361025736,1747209060190,-690.43,0.00011506,2]
[361025737,1747209060200,-295.00091888,0.00011506,2]
[361025738,1747209060210,-400.0,0.00011506,2]
[361025739,1747209060220,-400.0,0.00011506,2]
[361025740,1747209060230,-400.0,0.00011506,2]
[361025741,1747209060241,-400.0,0.00011506,2]
[361025742,1747209060251,-400.0,0.00011506,2]
[361025743,1747209060261,-416.24,0.00011506,2]
[361025744,1747209060271,-400.0,0.00011506,2]
[361025745,1747209060280,-400.0,0.00011506,2]
[361025746,1747209060291,-402.6,0.00011506,2]
[361025747,1747209060301,-400.0,0.00011506,2]
[361025748,1747209060311,-400.0,0.00011506,2]
[361025749,1747209060320,-400.0,0.00011506,2]
[361025750,1747209060329,-400.0,0.00011506,2]
[361025751,1747209060339,-400.0,0.00011506,2]
[361025752,1747209060353,-1405.65,0.00011506,2]
[361025753,1747209060362,-400.0,0.00011506,2]
[361025754,1747209060371,-1113.76,0.00011506,2]
[361025755,1747209060381,-400.0,0.00011506,2]
[361025756,1747209060391,-400.0,0.00011506,2]
[361025757,1747209060401,-468.31,0.00011506,2]
[361025758,1747209060410,-665.02,0.00011506,2]
[361025759,1747209060420,-1001.39,0.00011506,2]
[361025760,1747209060430,-777.85,0.00011506,2]
[361025761,1747209060440,-400.0,0.00011506,2]
[361025762,1747209060453,-400.0,0.00011506,2]
[361025763,1747209060463,-400.0,0.00011506,2]
[361025764,1747209060472,-2209.78,0.00011506,2]
[361025765,1747209060481,-542.27,0.00011506,2]
[361025766,1747209060491,-400.0,0.00011506,2]
[361025767,1747209060501,-1048.34,0.00011506,2]
[361025768,1747209060510,-400.0,0.00011506,2]
[361025769,1747209060520,-1451.38,0.00011506,2]
[361025770,1747209060529,-619.23,0.00011506,2]
[361025771,1747209060539,-400.0,0.00011506,2]
[361025772,1747209060549,-2336.68,0.00011506,2]
[361025773,1747209060559,-845.06,0.00011506,2]
[361025774,1747209060568,-400.0,0.00011506,2]
[361025775,1747209060578,-1320.89,0.00011506,2]
[361025776,1747209060588,-400.0,0.00011506,2]
[361025777,1747209060597,-666.66,0.00011506,2]
[361025778,1747209060607,-400.0,0.00011506,2]
[361025779,1747209060616,-400.0,0.00011506,2]
[361025780,1747209060626,-663.81,0.00011506,2]
[361025781,1747209060635,-400.0,0.00011506,2]
[361025782,1747209060645,-400.0,0.00011506,2]
[361025783,1747209060654,-541.3,0.00011506,2]
[361025784,1747209060664,-400.0,0.00011506,2]
[361025785,1747209060673,-400.0,0.00011506,2]
[361025786,1747209060683,-400.0,0.00011506,2]
[361025787,1747209060693,-400.0,0.00011506,2]
[361025788,1747209060705,-400.0,0.00011506,2]
[361025789,1747209060715,-1134.08,0.00011506,2]
[361025790,1747209060724,-445.33,0.00011506,2]
[361025791,1747209060734,-1257.84,0.00011506,2]
[361025792,1747209060743,-575.36,0.00011506,2]
[361025793,1747209060752,-400.0,0.00011506,2]
[361025794,1747209060762,-1000.0,0.00011506,2]
[361025795,1747209060772,-1007.26,0.00011506,2]
[361025796,1747209060781,-400.0,0.00011506,2]
[361025797,1747209060791,-659.39,0.00011506,2]
[361025798,1747209060800,-282.4942183,0.00011506,2]
[361025799,1747209060809,-1204.75,0.00011506,2]
[361025800,1747209060819,-400.0,0.00011506,2]
[361025801,1747209060829,-400.98,0.00011506,2]
[361025802,1747209060839,-906.35,0.00011506,2]
[361025803,1747209060848,-466.88,0.00011506,2]
[361025804,1747209060858,-1524.33,0.00011506,2]
[361025805,1747209060867,-774.55,0.00011506,2]
[361025806,1747209060877,-400.0,0.00011506,2]
[361025807,1747209060886,-873.16,0.00011506,2]
[361025808,1747209060895,-523.37,0.00011506,2]
[361025809,1747209060905,-4342.01,0.00011506,2]
[361025810,1747209060915,-352.56,0.00011506,2]
[361025811,1747209060925,-3290.66,0.00011506,2]
[361025812,1747209060934,-400.0,0.00011506,2]
[361025813,1747209060944,-400.0,0.00011506,2]
[361025814,1747209060955,-620.73,0.00011506,2]
[361025815,1747209060965,-400.0,0.00011506,2]
[361025816,1747209060975,-1318.63,0.00011506,2]
[361025817,1747209060984,-400.0,0.00011506,2]
[361025818,1747209060994,-400.0,0.00011506,2]
[361025819,1747209061004,-277.31021365,0.00011506,2]
[361025820,1747209061014,-794.74,0.00011506,2]
[361025821,1747209061024,-400.0,0.00011506,2]
[361025822,1747209061034,-400.0,0.00011506,2]
[361025823,1747209061044,-496.52,0.00011506,2]
[361025824,1747209061053,-558.78,0.00011506,2]
[361025825,1747209061062,-400.0,0.00011506,2]
[361025826,1747209061072,-903.19,0.00011506,2]
[361025827,1747209061081,-824.62,0.00011506,2]
[361025828,1747209061091,-400.0,0.00011506,2]
[361025829,1747209061101,-400.0,0.00011506,2]
[361025830,1747209061110,-400.0,0.00011506,2]
[361025831,1747209061120,-1186.62,0.00011506,2]
[361025832,1747209061132,-525.47,0.00011506,2]
[361025833,1747209061142,-400.0,0.00011506,2]
[361025834,1747209061152,-992.09,0.00011506,2]
[361025835,1747209061161,-507.48,0.00011506,2]
[361025836,1747209061171,-400.0,0.00011506,2]
[361025837,1747209061180,-400.0,0.00011506,2]
[361025838,1747209061189,-1186.0,0.00011506,2]
[361025839,1747209061200,-871.03,0.00011506,2]
[361025840,1747209061211,-8303.1,0.00011506,2]
[361025841,1747209061220,-2394.97,0.00011506,2]
[361025842,1747209061230,-635.51,0.00011506,2]
[361025843,1747209061239,-400.0,0.00011506,2]